[Event "*** Titled Tuesday Blitz"]
[Site "Chess.com"]
[Date "2019.10.01"]
[Round "9"]
[White "ThePunisherxx"]
[Black "Olga_Ustinova"]
[Result "1/2-1/2"]
[WhiteElo "2636"]
[BlackElo "2383"]
[TimeControl "180+2"]
[EndTime "15:10:25 PDT"]
[Termination "Game drawn by repetition"]

1. c4 {[%clk 0:03:01.9]} 1... d5 {[%clk 0:03:01.9]} 2. cxd5 {[%clk 0:03:02.5]}
2... c6 {[%clk 0:02:55.7]} 3. dxc6 {[%clk 0:03:02.9]} 3... Nxc6 {[%clk
0:02:57.6]} 4. Nc3 {[%clk 0:03:00.2]} 4... e5 {[%clk 0:02:59.5]} 5. d3 {[%clk
0:03:01.1]} 5... Bc5 {[%clk 0:02:58.1]} 6. Nf3 {[%clk 0:03:00.6]} 6... Nf6
{[%clk 0:02:56.1]} 7. e3 {[%clk 0:03:01.4]} 7... O-O {[%clk 0:02:54.4]} 8. Be2
{[%clk 0:03:02.3]} 8... Qc7 {[%clk 0:02:55.3]} 9. O-O {[%clk 0:03:02]} 9... Rd8
{[%clk 0:02:56.6]} 10. Qc2 {[%clk 0:03:01.1]} 10... a6 {[%clk 0:02:57.2]} 11. a3
{[%clk 0:03:01.8]} 11... Bf5 {[%clk 0:02:53.3]} 12. Ne4 {[%clk 0:02:57.6]} 12...
Be7 {[%clk 0:02:51]} 13. Nxf6+ {[%clk 0:02:56]} 13... Bxf6 {[%clk 0:02:52.9]}
14. e4 {[%clk 0:02:56.6]} 14... Bg4 {[%clk 0:02:52.3]} 15. Be3 {[%clk
0:02:56.8]} 15... Qd6 {[%clk 0:02:52.4]} 16. Rac1 {[%clk 0:02:52.4]} 16... Bxf3
{[%clk 0:02:52]} 17. Bxf3 {[%clk 0:02:41.4]} 17... Qxd3 {[%clk 0:02:52.5]} 18.
Qxd3 {[%clk 0:02:41.1]} 18... Rxd3 {[%clk 0:02:54.4]} 19. Rfd1 {[%clk
0:02:41.9]} 19... Rad8 {[%clk 0:02:55.1]} 20. Rxd3 {[%clk 0:02:41.7]} 20... Rxd3
{[%clk 0:02:56.7]} 21. Be2 {[%clk 0:02:37.5]} 21... Rd8 {[%clk 0:02:56.9]} 22.
Bc4 {[%clk 0:02:36.9]} 22... h6 {[%clk 0:02:55.8]} 23. Bd5 {[%clk 0:02:37.1]}
23... Bg5 {[%clk 0:02:52.6]} 24. Bxg5 {[%clk 0:02:19.5]} 24... hxg5 {[%clk
0:02:54.5]} 25. f3 {[%clk 0:02:20.2]} 25... Rd6 {[%clk 0:02:54.3]} 26. Rc5
{[%clk 0:02:08.9]} 26... Kf8 {[%clk 0:02:49.8]} 27. b4 {[%clk 0:02:00.8]} 27...
f6 {[%clk 0:02:48.4]} 28. b5 {[%clk 0:01:57.3]} 28... Nd4 {[%clk 0:02:43.1]} 29.
bxa6 {[%clk 0:01:32.8]} 29... Rxa6 {[%clk 0:02:33.1]} 30. Rc8+ {[%clk
0:01:31.1]} 30... Ke7 {[%clk 0:02:33.8]} 31. Rc7+ {[%clk 0:01:32.5]} 31... Kf8
{[%clk 0:02:31.2]} 32. Rf7+ {[%clk 0:01:31.3]} 32... Ke8 {[%clk 0:02:32.4]} 33.
Rxb7 {[%clk 0:01:33.2]} 33... Rxa3 {[%clk 0:02:32.5]} 34. Rxg7 {[%clk
0:01:33.1]} 34... Ne2+ {[%clk 0:02:25.2]} 35. Kf2 {[%clk 0:01:18.6]} 35... Nf4
{[%clk 0:02:26.1]} 36. g3 {[%clk 0:01:17.8]} 36... Nxd5 {[%clk 0:02:24.8]} 37.
exd5 {[%clk 0:01:18.3]} 37... Rd3 {[%clk 0:02:25.3]} 38. g4 {[%clk 0:01:10.1]}
38... Rxd5 {[%clk 0:02:25.5]} 39. Ke3 {[%clk 0:01:10.9]} 39... Rd4 {[%clk
0:02:24.8]} 40. Rh7 {[%clk 0:01:09.7]} 40... Rf4 {[%clk 0:02:25.3]} 41. h3
{[%clk 0:01:07.2]} 41... Kf8 {[%clk 0:02:26.5]} 42. Ra7 {[%clk 0:01:04.7]} 42...
Ke8 {[%clk 0:02:27.6]} 43. Rb7 {[%clk 0:01:05.5]} 43... Kf8 {[%clk 0:02:28.5]}
44. Ra7 {[%clk 0:01:06.8]} 44... Ke8 {[%clk 0:02:29.7]} 45. Rb7 {[%clk
0:01:02.4]} 45... Kf8 {[%clk 0:02:30.9]} 46. Rh7 {[%clk 0:01:01.2]} 46... Kg8
{[%clk 0:02:31.8]} 47. Ra7 {[%clk 0:01:01.4]} 47... Kf8 {[%clk 0:02:33.1]} 48.
Rc7 {[%clk 0:01:01.3]} 48... Kg8 {[%clk 0:02:34.2]} 49. Rd7 {[%clk 0:00:59.8]}
49... Kf8 {[%clk 0:02:35.2]} 50. Ke2 {[%clk 0:01:00]} 50... Kg8 {[%clk
0:02:34.1]} 51. Re7 {[%clk 0:00:58.6]} 51... Kf8 {[%clk 0:02:35.1]} 52. Ra7
{[%clk 0:00:59.5]} 52... Kg8 {[%clk 0:02:36.5]} 53. Ke3 {[%clk 0:01:00.5]} 53...
Kf8 {[%clk 0:02:37.7]} 54. Rb7 {[%clk 0:01:00.7]} 54... Kg8 {[%clk 0:02:38.8]}
55. Re7 {[%clk 0:01:00.4]} 55... Kf8 {[%clk 0:02:39.9]} 56. Rh7 {[%clk
0:01:00.9]} 56... Kg8 {[%clk 0:02:41.1]} 57. Ra7 {[%clk 0:01:01.6]} 1/2-1/2

[Event "*** Titled Tuesday Blitz"]
[Site "Chess.com"]
[Date "2019.10.01"]
[Round "9"]
[White "ferdipy"]
[Black "poliplaza"]
[Result "1-0"]
[WhiteElo "2178"]
[BlackElo "2300"]
[TimeControl "180+2"]
[EndTime "15:10:36 PDT"]
[Termination "ferdipy won by checkmate"]

1. e4 {[%clk 0:03:01.9]} 1... c5 {[%clk 0:03:00.9]} 2. Nf3 {[%clk 0:03:00]} 2...
e6 {[%clk 0:03:02.2]} 3. c3 {[%clk 0:02:59.7]} 3... Nf6 {[%clk 0:03:02.6]} 4. e5
{[%clk 0:03:00]} 4... Nd5 {[%clk 0:03:03.5]} 5. d4 {[%clk 0:03:01]} 5... cxd4
{[%clk 0:03:04.7]} 6. cxd4 {[%clk 0:03:02.9]} 6... b6 {[%clk 0:03:05.2]} 7. a3
{[%clk 0:03:01.2]} 7... Bb7 {[%clk 0:03:05.6]} 8. Bd3 {[%clk 0:03:02.7]} 8...
Be7 {[%clk 0:03:03.7]} 9. O-O {[%clk 0:03:04.1]} 9... O-O {[%clk 0:03:03.4]} 10.
Bd2 {[%clk 0:03:01.6]} 10... d6 {[%clk 0:03:03.2]} 11. Qe2 {[%clk 0:02:55.5]}
11... Nd7 {[%clk 0:02:35.1]} 12. Nc3 {[%clk 0:02:53.1]} 12... dxe5 {[%clk
0:02:16.2]} 13. dxe5 {[%clk 0:02:52.6]} 13... Nc5 {[%clk 0:02:16.2]} 14. Bc2
{[%clk 0:02:52.5]} 14... Nxc3 {[%clk 0:02:08]} 15. Bxc3 {[%clk 0:02:52.4]} 15...
Ba6 {[%clk 0:02:08.5]} 16. Qe3 {[%clk 0:02:30.6]} 16... Bxf1 {[%clk 0:02:07.1]}
17. Rxf1 {[%clk 0:02:32.5]} 17... Rc8 {[%clk 0:01:58.6]} 18. Rd1 {[%clk
0:02:25.5]} 18... Qc7 {[%clk 0:01:51.9]} 19. Rd4 {[%clk 0:02:20.9]} 19... Rfd8
{[%clk 0:01:04.3]} 20. Rg4 {[%clk 0:02:19.2]} 20... Bf8 {[%clk 0:00:38.6]} 21.
h4 {[%clk 0:01:45.7]} 21... Qd7 {[%clk 0:00:28]} 22. Ng5 {[%clk 0:01:00.8]}
22... h6 {[%clk 0:00:18.8]} 23. Nh7 {[%clk 0:01:01.6]} 23... Nd3 {[%clk
0:00:13.9]} 24. Nf6+ {[%clk 0:00:58.7]} 24... Kh8 {[%clk 0:00:12.8]} 25. Qxh6+
{[%clk 0:00:59.4]} 25... gxh6 {[%clk 0:00:12.4]} 26. Rg8# {[%clk 0:01:00.5]} 1-0

[Event "*** Titled Tuesday Blitz"]
[Site "Chess.com"]
[Date "2019.10.01"]
[Round "9"]
[White "Parhamov"]
[Black "BlueWizzard"]
[Result "1-0"]
[WhiteElo "3043"]
[BlackElo "2856"]
[TimeControl "180+2"]
[EndTime "15:10:51 PDT"]
[Termination "Parhamov won by resignation"]

1. Nf3 {[%clk 0:03:00.9]} 1... Nf6 {[%clk 0:02:36.9]} 2. c4 {[%clk 0:03:02.8]}
2... g6 {[%clk 0:02:37]} 3. b3 {[%clk 0:03:03]} 3... d6 {[%clk 0:02:36.8]} 4.
Bb2 {[%clk 0:03:03.6]} 4... e5 {[%clk 0:02:38.2]} 5. g3 {[%clk 0:03:04.1]} 5...
Bg7 {[%clk 0:02:39.3]} 6. Bg2 {[%clk 0:03:05]} 6... O-O {[%clk 0:02:40.2]} 7.
O-O {[%clk 0:03:06.2]} 7... Nc6 {[%clk 0:02:40.5]} 8. d3 {[%clk 0:03:06.3]} 8...
Re8 {[%clk 0:02:40.1]} 9. a3 {[%clk 0:03:04.3]} 9... e4 {[%clk 0:02:40]} 10.
dxe4 {[%clk 0:02:58.9]} 10... Nxe4 {[%clk 0:02:41.9]} 11. Qc1 {[%clk 0:02:57.1]}
11... Bg4 {[%clk 0:02:37.9]} 12. e3 {[%clk 0:02:54.3]} 12... Qd7 {[%clk
0:02:30.4]} 13. Bxg7 {[%clk 0:02:48.8]} 13... Kxg7 {[%clk 0:02:32.3]} 14. Nfd2
{[%clk 0:02:48.6]} 14... Nf6 {[%clk 0:02:26.2]} 15. Qb2 {[%clk 0:02:45.9]} 15...
Ne5 {[%clk 0:02:21.4]} 16. Nc3 {[%clk 0:02:43.4]} 16... Bh3 {[%clk 0:02:15.6]}
17. Nd5 {[%clk 0:02:38.6]} 17... Nxd5 {[%clk 0:01:57.5]} 18. cxd5 {[%clk
0:02:40.5]} 18... f6 {[%clk 0:01:54.9]} 19. Qd4 {[%clk 0:02:38.2]} 19... Bxg2
{[%clk 0:01:52.6]} 20. Kxg2 {[%clk 0:02:40.1]} 20... c5 {[%clk 0:01:52.2]} 21.
Qc3 {[%clk 0:02:38]} 21... Qb5 {[%clk 0:01:25.8]} 22. Nc4 {[%clk 0:02:35.5]}
22... Nxc4 {[%clk 0:01:25.8]} 23. bxc4 {[%clk 0:02:36.3]} 23... Qa4 {[%clk
0:01:20]} 24. Rab1 {[%clk 0:02:37.4]} 24... Rab8 {[%clk 0:01:21.1]} 25. Rb5
{[%clk 0:02:34.8]} 25... Re4 {[%clk 0:01:20.2]} 26. Rfb1 {[%clk 0:02:33]} 26...
b6 {[%clk 0:01:17]} 27. Ra5 {[%clk 0:02:33.8]} 27... Qxa5 {[%clk 0:01:02.9]} 28.
Qxa5 {[%clk 0:02:33.5]} 28... bxa5 {[%clk 0:01:04.8]} 29. Rxb8 {[%clk
0:02:34.6]} 29... Rxc4 {[%clk 0:01:06.7]} 30. Rd8 {[%clk 0:02:28.6]} 30... Ra4
{[%clk 0:01:02.2]} 31. Rxd6 {[%clk 0:02:27.7]} 31... Rxa3 {[%clk 0:01:02.9]} 32.
Rc6 {[%clk 0:02:26.6]} 32... f5 {[%clk 0:01:04]} 33. Rxc5 {[%clk 0:02:26]} 33...
Kf6 {[%clk 0:01:05.4]} 34. Rc7 {[%clk 0:02:25.8]} 34... h5 {[%clk 0:01:02.3]}
35. Rc6+ {[%clk 0:02:23.8]} 35... Kf7 {[%clk 0:01:02.5]} 36. Ra6 {[%clk
0:02:23.1]} 36... a4 {[%clk 0:01:03.3]} 37. Kf3 {[%clk 0:02:23.3]} 37... Rd3
{[%clk 0:01:03.5]} 38. Rxa7+ {[%clk 0:02:20.3]} 38... Kf6 {[%clk 0:01:04.5]} 39.
Ra6+ {[%clk 0:02:21.6]} 39... Kg5 {[%clk 0:01:05.1]} 40. h4+ {[%clk 0:02:16.3]}
40... Kh6 {[%clk 0:01:06.1]} 41. Ra5 {[%clk 0:02:16]} 41... Rd2 {[%clk
0:01:05.8]} 42. e4 {[%clk 0:02:14]} 42... fxe4+ {[%clk 0:00:38.1]} 43. Ke3
{[%clk 0:02:13.1]} 43... Ra2 {[%clk 0:00:37.4]} 44. d6 {[%clk 0:02:09]} 44...
Rb2 {[%clk 0:00:33.7]} 45. Rxa4 {[%clk 0:02:09.4]} 45... Kg7 {[%clk 0:00:32.5]}
46. d7 {[%clk 0:02:09.7]} 46... Rb8 {[%clk 0:00:32.5]} 47. Rd4 {[%clk
0:02:10.5]} 47... Rd8 {[%clk 0:00:33.8]} 48. Kxe4 {[%clk 0:02:11.9]} 48... Kf6
{[%clk 0:00:35.3]} 49. Kf4 {[%clk 0:02:13.2]} 49... Ke6 {[%clk 0:00:32.9]} 50.
Kg5 {[%clk 0:02:14.2]} 50... Ke5 {[%clk 0:00:34.3]} 51. Rd1 {[%clk 0:02:15.3]}
51... Ke4 {[%clk 0:00:35.4]} 52. Kxg6 {[%clk 0:02:16.7]} 52... Kf3 {[%clk
0:00:36.8]} 53. Rd2 {[%clk 0:02:18.2]} 53... Kg4 {[%clk 0:00:38.1]} 54. Kf6
{[%clk 0:02:18]} 1-0

[Event "*** Titled Tuesday Blitz"]
[Site "Chess.com"]
[Date "2019.10.01"]
[Round "9"]
[White "Ginzburg_Yakov"]
[Black "Bryakin_Mikhail"]
[Result "1-0"]
[WhiteElo "2592"]
[BlackElo "2738"]
[TimeControl "180+2"]
[EndTime "15:10:55 PDT"]
[Termination "Ginzburg_Yakov won on time"]

1. e4 {[%clk 0:03:01.5]} 1... d5 {[%clk 0:03:01]} 2. Nc3 {[%clk 0:02:58.6]} 2...
c6 {[%clk 0:02:57]} 3. d4 {[%clk 0:02:58.6]} 3... dxe4 {[%clk 0:02:57.2]} 4.
Nxe4 {[%clk 0:02:59.7]} 4... Bf5 {[%clk 0:02:58.6]} 5. Ng3 {[%clk 0:03:00.5]}
5... Bg6 {[%clk 0:02:59.9]} 6. Nf3 {[%clk 0:03:02.1]} 6... Nd7 {[%clk
0:03:00.7]} 7. h4 {[%clk 0:03:02.4]} 7... h6 {[%clk 0:03:02.2]} 8. h5 {[%clk
0:03:04]} 8... Bh7 {[%clk 0:03:03.7]} 9. Bd3 {[%clk 0:03:05.8]} 9... Bxd3 {[%clk
0:03:04.9]} 10. Qxd3 {[%clk 0:03:07.6]} 10... e6 {[%clk 0:03:06.1]} 11. Bf4
{[%clk 0:03:08.1]} 11... Qa5+ {[%clk 0:03:05.7]} 12. Bd2 {[%clk 0:03:08.9]}
12... Qc7 {[%clk 0:03:06.9]} 13. O-O-O {[%clk 0:03:08.5]} 13... Ngf6 {[%clk
0:03:07.8]} 14. Ne4 {[%clk 0:03:08.6]} 14... Rd8 {[%clk 0:03:01.2]} 15. g3
{[%clk 0:03:00.8]} 15... Nxe4 {[%clk 0:02:59.3]} 16. Qxe4 {[%clk 0:03:01.7]}
16... Nf6 {[%clk 0:03:01.2]} 17. Qe2 {[%clk 0:03:02.7]} 17... Be7 {[%clk
0:02:53.8]} 18. g4 {[%clk 0:02:45.2]} 18... Nxg4 {[%clk 0:02:30.4]} 19. Rhg1
{[%clk 0:02:45.6]} 19... Nf6 {[%clk 0:02:30.7]} 20. Rxg7 {[%clk 0:02:45.8]}
20... Bd6 {[%clk 0:02:11.2]} 21. Ne5 {[%clk 0:02:25.7]} 21... Bxe5 {[%clk
0:02:11.9]} 22. dxe5 {[%clk 0:02:26.9]} 22... Ng8 {[%clk 0:02:11.4]} 23. Qf3
{[%clk 0:02:08.8]} 23... Qd7 {[%clk 0:02:08.1]} 24. Rgg1 {[%clk 0:01:51.3]}
24... Qd5 {[%clk 0:02:02.9]} 25. Qa3 {[%clk 0:01:31.5]} 25... Qxe5 {[%clk
0:01:58.6]} 26. Qxa7 {[%clk 0:01:32.3]} 26... Ne7 {[%clk 0:01:52.2]} 27. Bc3
{[%clk 0:01:18.3]} 27... Qf4+ {[%clk 0:01:52.4]} 28. Kb1 {[%clk 0:01:19.3]}
28... Rxd1+ {[%clk 0:01:52.9]} 29. Rxd1 {[%clk 0:01:19.8]} 29... O-O {[%clk
0:01:54.4]} 30. Rg1+ {[%clk 0:01:17.9]} 30... Ng6 {[%clk 0:01:45.2]} 31. hxg6
{[%clk 0:01:16.5]} 1-0

[Event "*** Titled Tuesday Blitz"]
[Site "Chess.com"]
[Date "2019.10.01"]
[Round "9"]
[White "colegiodemadrid"]
[Black "Olga_Girya"]
[Result "0-1"]
[WhiteElo "2351"]
[BlackElo "2491"]
[TimeControl "180+2"]
[EndTime "15:11:17 PDT"]
[Termination "Olga_Girya won by checkmate"]

1. Nf3 {[%clk 0:03:01.9]} 1... d5 {[%clk 0:03:00]} 2. c4 {[%clk 0:03:01.4]} 2...
e6 {[%clk 0:02:58]} 3. g3 {[%clk 0:03:02]} 3... Nf6 {[%clk 0:02:59.1]} 4. Bg2
{[%clk 0:03:03.1]} 4... dxc4 {[%clk 0:02:59.8]} 5. Qa4+ {[%clk 0:03:03]} 5...
Bd7 {[%clk 0:03:00.6]} 6. Qxc4 {[%clk 0:03:04]} 6... c5 {[%clk 0:03:01.9]} 7.
Ne5 {[%clk 0:03:02.2]} 7... Qc7 {[%clk 0:02:34.9]} 8. Nxd7 {[%clk 0:02:50.7]}
8... Nbxd7 {[%clk 0:02:34.6]} 9. O-O {[%clk 0:02:51.5]} 9... Be7 {[%clk
0:02:33]} 10. Nc3 {[%clk 0:02:51.4]} 10... O-O {[%clk 0:02:33.1]} 11. d3 {[%clk
0:02:50.6]} 11... a6 {[%clk 0:02:34.2]} 12. Bf4 {[%clk 0:02:50.2]} 12... Qc8
{[%clk 0:02:26]} 13. Ne4 {[%clk 0:02:33.6]} 13... Nxe4 {[%clk 0:02:23]} 14. Bxe4
{[%clk 0:02:32.5]} 14... Nf6 {[%clk 0:02:23.7]} 15. Bg2 {[%clk 0:02:31]} 15...
Qd7 {[%clk 0:02:24.7]} 16. Qc2 {[%clk 0:02:21.4]} 16... Nd5 {[%clk 0:02:24.3]}
17. Bd2 {[%clk 0:02:22.1]} 17... Rac8 {[%clk 0:02:22.3]} 18. a3 {[%clk
0:02:22.7]} 18... b5 {[%clk 0:02:19.1]} 19. Rfd1 {[%clk 0:02:20.4]} 19... Rfd8
{[%clk 0:02:16.6]} 20. Ba5 {[%clk 0:02:21]} 20... Re8 {[%clk 0:02:15.6]} 21.
Rac1 {[%clk 0:02:18.3]} 21... Bd8 {[%clk 0:02:13.6]} 22. Be1 {[%clk 0:02:07.1]}
22... Bf6 {[%clk 0:02:13.6]} 23. e4 {[%clk 0:02:05]} 23... Nb6 {[%clk
0:02:12.6]} 24. f4 {[%clk 0:02:03]} 24... Bd4+ {[%clk 0:02:13.1]} 25. Bf2 {[%clk
0:02:02.5]} 25... Red8 {[%clk 0:02:06.7]} 26. g4 {[%clk 0:01:59.7]} 26... e5
{[%clk 0:02:07.1]} 27. f5 {[%clk 0:02:00.5]} 27... Qe7 {[%clk 0:02:05.9]} 28.
Kh1 {[%clk 0:01:56.8]} 28... h6 {[%clk 0:01:59]} 29. Qe2 {[%clk 0:01:49.6]}
29... Na4 {[%clk 0:01:58.9]} 30. Bxd4 {[%clk 0:01:48.7]} 30... cxd4 {[%clk
0:01:58.6]} 31. Qf2 {[%clk 0:01:41.5]} 31... Qg5 {[%clk 0:01:58.7]} 32. Rxc8
{[%clk 0:01:39]} 32... Rxc8 {[%clk 0:01:59.2]} 33. h4 {[%clk 0:01:39.8]} 33...
Qxg4 {[%clk 0:01:55.8]} 34. Bf3 {[%clk 0:01:38.2]} 34... Rc2 {[%clk 0:01:43.3]}
35. Qxc2 {[%clk 0:01:30.3]} 35... Qxf3+ {[%clk 0:01:44.5]} 36. Kg1 {[%clk
0:01:31.5]} 36... Qg3+ {[%clk 0:01:44.4]} 37. Qg2 {[%clk 0:01:27.7]} 37... Qxh4
{[%clk 0:01:42.7]} 38. Rc1 {[%clk 0:01:22.6]} 38... Qf4 {[%clk 0:01:40.2]} 39.
Rc8+ {[%clk 0:01:20.1]} 39... Kh7 {[%clk 0:01:40.8]} 40. Rc1 {[%clk 0:01:18.2]}
40... Qxc1+ {[%clk 0:01:41.1]} 41. Kh2 {[%clk 0:00:56.7]} 41... Qxb2 {[%clk
0:01:40.6]} 42. Kh3 {[%clk 0:00:17.1]} 42... Qxg2+ {[%clk 0:01:39.9]} 43. Kxg2
{[%clk 0:00:19]} 43... Nb2 {[%clk 0:01:41.3]} 44. Kf3 {[%clk 0:00:20.9]} 44...
Nxd3 {[%clk 0:01:42.6]} 45. Ke2 {[%clk 0:00:22.8]} 45... Nc5 {[%clk 0:01:43.9]}
46. Kd2 {[%clk 0:00:24.7]} 46... Nxe4+ {[%clk 0:01:44.9]} 47. Kc2 {[%clk
0:00:26.6]} 47... Nd6 {[%clk 0:01:46.3]} 48. Kb3 {[%clk 0:00:28.5]} 48... e4
{[%clk 0:01:47.3]} 49. Kb4 {[%clk 0:00:30.4]} 49... e3 {[%clk 0:01:48.4]} 50.
Ka5 {[%clk 0:00:32.3]} 50... e2 {[%clk 0:01:49.6]} 51. Kxa6 {[%clk 0:00:34.2]}
51... e1=Q {[%clk 0:01:50.9]} 52. Kb6 {[%clk 0:00:36.1]} 52... Qc3 {[%clk
0:01:50.3]} 53. a4 {[%clk 0:00:38]} 53... bxa4 {[%clk 0:01:50.5]} 54. Ka6 {[%clk
0:00:38.5]} 54... Qb4 {[%clk 0:01:51]} 55. Ka7 {[%clk 0:00:38.8]} 55... Qb7#
{[%clk 0:01:51.7]} 0-1

[Event "*** Titled Tuesday Blitz"]
[Site "Chess.com"]
[Date "2019.10.01"]
[Round "9"]
[White "Roman_Ovetchkin"]
[Black "13MiRacLe"]
[Result "0-1"]
[WhiteElo "2631"]
[BlackElo "2516"]
[TimeControl "180+2"]
[EndTime "15:11:26 PDT"]
[Termination "13MiRacLe won on time"]

1. d4 {[%clk 0:03:01.9]} 1... Nf6 {[%clk 0:02:59.6]} 2. c4 {[%clk 0:03:02.9]}
2... g6 {[%clk 0:02:58.6]} 3. Nc3 {[%clk 0:03:03.4]} 3... d5 {[%clk 0:02:59.1]}
4. Nf3 {[%clk 0:03:00]} 4... Bg7 {[%clk 0:02:56.2]} 5. cxd5 {[%clk 0:02:57.5]}
5... Nxd5 {[%clk 0:02:55.7]} 6. e4 {[%clk 0:02:59.1]} 6... Nxc3 {[%clk
0:02:56.7]} 7. bxc3 {[%clk 0:03:01]} 7... c5 {[%clk 0:02:58]} 8. Rb1 {[%clk
0:02:59.8]} 8... O-O {[%clk 0:02:58.7]} 9. Be2 {[%clk 0:02:41.4]} 9... Nc6
{[%clk 0:02:59.5]} 10. d5 {[%clk 0:02:41.1]} 10... Bxc3+ {[%clk 0:03:01.4]} 11.
Bd2 {[%clk 0:02:42.2]} 11... Bxd2+ {[%clk 0:03:02.5]} 12. Qxd2 {[%clk
0:02:44.1]} 12... Na5 {[%clk 0:03:04.1]} 13. h4 {[%clk 0:02:35.3]} 13... Bg4
{[%clk 0:03:05.1]} 14. h5 {[%clk 0:02:34.9]} 14... Bxf3 {[%clk 0:03:06.4]} 15.
hxg6 {[%clk 0:02:21.1]} 15... Bxe4 {[%clk 0:02:29.4]} 16. Bd3 {[%clk 0:01:59.6]}
16... Bxd3 {[%clk 0:02:01]} 17. Qxd3 {[%clk 0:01:59.7]} 17... fxg6 {[%clk
0:01:53.6]} 18. Kf1 {[%clk 0:01:31.6]} 18... Rf5 {[%clk 0:01:41.1]} 19. Rd1
{[%clk 0:01:25.2]} 19... Qf8 {[%clk 0:01:27.9]} 20. Qe3 {[%clk 0:01:07.6]} 20...
b6 {[%clk 0:00:53.4]} 21. Kg1 {[%clk 0:00:22.8]} 21... Rd8 {[%clk 0:00:49.2]}
22. Rh4 {[%clk 0:00:20.3]} 22... Nb7 {[%clk 0:00:35.7]} 23. Re4 {[%clk
0:00:20.8]} 23... Rf7 {[%clk 0:00:24.3]} 24. Re6 {[%clk 0:00:18.4]} 24... Nd6
{[%clk 0:00:25.3]} 25. f3 {[%clk 0:00:19]} 25... Nf5 {[%clk 0:00:26.1]} 26. Qe5
{[%clk 0:00:17.9]} 26... Rf6 {[%clk 0:00:27.1]} 27. Rxf6 {[%clk 0:00:03.7]}
27... Qxf6 {[%clk 0:00:27.5]} 0-1

[Event "*** Titled Tuesday Blitz"]
[Site "Chess.com"]
[Date "2019.10.01"]
[Round "9"]
[White "boasovietica"]
[Black "LazarusChess92"]
[Result "1-0"]
[WhiteElo "2429"]
[BlackElo "2510"]
[TimeControl "180+2"]
[EndTime "15:11:29 PDT"]
[Termination "boasovietica won by resignation"]

1. e4 {[%clk 0:03:01.9]} 1... c5 {[%clk 0:03:00.4]} 2. Nf3 {[%clk 0:03:01]} 2...
e6 {[%clk 0:02:59.5]} 3. d4 {[%clk 0:02:58.7]} 3... cxd4 {[%clk 0:03:01.4]} 4.
Nxd4 {[%clk 0:02:59.3]} 4... Nc6 {[%clk 0:03:03]} 5. Nc3 {[%clk 0:02:59.4]} 5...
Qc7 {[%clk 0:03:03.5]} 6. Nb3 {[%clk 0:02:58.5]} 6... Nf6 {[%clk 0:02:56.6]} 7.
Bd3 {[%clk 0:02:59.7]} 7... a6 {[%clk 0:02:52.9]} 8. f4 {[%clk 0:02:57.1]} 8...
d6 {[%clk 0:02:52.8]} 9. Qf3 {[%clk 0:02:56.9]} 9... Be7 {[%clk 0:02:53.4]} 10.
Bd2 {[%clk 0:02:57.3]} 10... b5 {[%clk 0:02:52.4]} 11. O-O-O {[%clk 0:02:54]}
11... b4 {[%clk 0:02:45.6]} 12. Ne2 {[%clk 0:02:54.3]} 12... a5 {[%clk 0:02:46]}
13. Kb1 {[%clk 0:02:47.2]} 13... Bd7 {[%clk 0:02:41]} 14. g4 {[%clk 0:02:44.8]}
14... a4 {[%clk 0:02:33.1]} 15. Nbd4 {[%clk 0:02:45.6]} 15... Nxd4 {[%clk
0:02:33.6]} 16. Nxd4 {[%clk 0:02:45.9]} 16... e5 {[%clk 0:02:33.1]} 17. Nf5
{[%clk 0:02:43.6]} 17... Bxf5 {[%clk 0:02:34]} 18. exf5 {[%clk 0:02:22.3]} 18...
Rb8 {[%clk 0:02:34.7]} 19. g5 {[%clk 0:02:22.1]} 19... Nd7 {[%clk 0:02:31.8]}
20. g6 {[%clk 0:02:15.5]} 20... Nf6 {[%clk 0:02:08.3]} 21. fxe5 {[%clk
0:02:09.1]} 21... dxe5 {[%clk 0:02:08]} 22. Rhg1 {[%clk 0:02:03.5]} 22... b3
{[%clk 0:01:40.4]} 23. cxb3 {[%clk 0:01:48.8]} 23... axb3 {[%clk 0:01:40.6]} 24.
a4 {[%clk 0:01:42.7]} 24... Qa7 {[%clk 0:00:51.8]} 25. Bb5+ {[%clk 0:01:26.2]}
25... Rxb5 {[%clk 0:00:50.9]} 26. Qc6+ {[%clk 0:01:27]} 26... Kf8 {[%clk
0:00:33.8]} 27. Qxb5 {[%clk 0:01:19.6]} 27... hxg6 {[%clk 0:00:34.7]} 28. fxg6
{[%clk 0:01:20.4]} 28... Rxh2 {[%clk 0:00:35.6]} 29. Bb4 {[%clk 0:01:08.1]}
29... fxg6 {[%clk 0:00:22.6]} 30. Rd8+ {[%clk 0:00:53.5]} 30... Kf7 {[%clk
0:00:21.2]} 31. Qc4+ {[%clk 0:00:54.4]} 31... Nd5 {[%clk 0:00:14.7]} 32. Rf1+
{[%clk 0:00:46.6]} 32... Rf2 {[%clk 0:00:14.5]} 33. Qxd5+ {[%clk 0:00:45.1]}
33... Kf6 {[%clk 0:00:14.9]} 34. Bxe7+ {[%clk 0:00:40.5]} 34... Kxe7 {[%clk
0:00:15.9]} 35. Qd6+ {[%clk 0:00:40.4]} 1-0

[Event "*** Titled Tuesday Blitz"]
[Site "Chess.com"]
[Date "2019.10.01"]
[Round "9"]
[White "przemekpiotrowski"]
[Black "GianmarcoVaR"]
[Result "0-1"]
[WhiteElo "2426"]
[BlackElo "2603"]
[TimeControl "180+2"]
[EndTime "15:11:31 PDT"]
[Termination "GianmarcoVaR won by checkmate"]

1. d4 {[%clk 0:02:31.5]} 1... Nf6 {[%clk 0:02:55.9]} 2. Nf3 {[%clk 0:02:33.1]}
2... e6 {[%clk 0:02:57.5]} 3. g3 {[%clk 0:02:34.8]} 3... b6 {[%clk 0:02:59]} 4.
Bg2 {[%clk 0:02:36.4]} 4... Bb7 {[%clk 0:03:00.6]} 5. O-O {[%clk 0:02:38.1]}
5... Be7 {[%clk 0:03:00.5]} 6. c4 {[%clk 0:02:39.6]} 6... O-O {[%clk 0:02:58.2]}
7. Nc3 {[%clk 0:02:41.2]} 7... Ne4 {[%clk 0:02:59.6]} 8. Bd2 {[%clk 0:02:42.4]}
8... Bf6 {[%clk 0:02:59.6]} 9. Qc2 {[%clk 0:02:42.4]} 9... Nxd2 {[%clk
0:03:00.7]} 10. Qxd2 {[%clk 0:02:43.3]} 10... d6 {[%clk 0:03:02.2]} 11. e4
{[%clk 0:02:44.4]} 11... Nd7 {[%clk 0:03:03.2]} 12. Rad1 {[%clk 0:02:43.7]}
12... c5 {[%clk 0:03:03]} 13. d5 {[%clk 0:02:31.5]} 13... Bxc3 {[%clk
0:03:03.6]} 14. Qxc3 {[%clk 0:02:30.6]} 14... exd5 {[%clk 0:02:59.1]} 15. exd5
{[%clk 0:02:29.7]} 15... Qf6 {[%clk 0:02:58.9]} 16. Qc2 {[%clk 0:02:14]} 16...
Rfe8 {[%clk 0:02:48.7]} 17. Rfe1 {[%clk 0:02:12.7]} 17... Ne5 {[%clk 0:02:49.9]}
18. Nxe5 {[%clk 0:02:03.3]} 18... Rxe5 {[%clk 0:02:51]} 19. f4 {[%clk
0:01:55.1]} 19... Ree8 {[%clk 0:02:51.2]} 20. a4 {[%clk 0:01:44.5]} 20... g6
{[%clk 0:02:37.9]} 21. b3 {[%clk 0:01:45]} 21... Kf8 {[%clk 0:02:38]} 22. Bh3
{[%clk 0:01:19]} 22... Rad8 {[%clk 0:02:35.5]} 23. Qd2 {[%clk 0:01:15.8]} 23...
Bc8 {[%clk 0:02:28.5]} 24. Bxc8 {[%clk 0:01:16]} 24... Rxc8 {[%clk 0:02:29.5]}
25. Kg2 {[%clk 0:01:17.6]} 25... a6 {[%clk 0:02:20.9]} 26. Kf3 {[%clk 0:01:10]}
26... h5 {[%clk 0:02:16.3]} 27. Rxe8+ {[%clk 0:01:10.2]} 27... Rxe8 {[%clk
0:02:16.1]} 28. Re1 {[%clk 0:01:12.1]} 28... Rxe1 {[%clk 0:01:19.7]} 29. Qxe1
{[%clk 0:01:14]} 29... Qb2 {[%clk 0:01:20.4]} 30. Qe3 {[%clk 0:01:15.2]} 30...
Qc2 {[%clk 0:01:21]} 31. h3 {[%clk 0:01:10.9]} 31... Qh2 {[%clk 0:00:53.3]} 32.
f5 {[%clk 0:01:00.1]} 32... Qxh3 {[%clk 0:00:36.8]} 33. f6 {[%clk 0:00:24]}
33... Qf1+ {[%clk 0:00:30.2]} 34. Ke4 {[%clk 0:00:15]} 34... Qf5# {[%clk
0:00:29.5]} 0-1